[Event "British Championship 2024"]
[Site "Hull"]
[Date "2024.08.01"]
[Round "6.29"]
[White "Van Zyl-Rudd, Jack"]
[Black "Subramanian, Anusha"]
[Result "1/2-1/2"]
[Annotator "RC"]
[ECO "E06"]
[WhiteElo "2292"]
[BlackElo "2050"]
[PlyCount "159"]
[EventDate "2024.07.31"]
[EventCountry "GBR"]
[SourceTitle "playchess.com"]
[Source "ChessBase"]
[SourceQuality "1"]
[TimeControl "40/5400+30:1800+30"]

1. d4 {[%emt 0:00:01]} Nf6 {[%emt 0:00:05]} 2. c4 {[%emt 0:00:06]} e6 {[%emt 0:00:04]} 3. g3 {[%emt 0:00:07]} d5 {[%emt 0:00:12]} 4. Bg2 {[%emt 0:00:06]} c6 {[%emt 0:00:41]} 5. Qc2 {[%emt 0:00:10]} Be7 {[%emt 0:00:42]} 6. Nf3 {[%emt 0:00:21]} O-O {[%emt 0:00:22]} 7. O-O {[%emt 0:00:06]} b6 {[%emt 0:01:14]} 8. b3 {[%emt 0:00:37]} Bb7 {[%emt 0:00:21]} 9. Ba3 {[%emt 0:00:30]} Nbd7 {[%emt 0:02:48]} 10. Bxe7 {[%emt 0:00:46]} Qxe7 {[%emt 0:00:06]} 11. Nbd2 {[%emt 0:00:15]} c5 {[%emt 0:02:24]} 12. cxd5 {[%emt 0:00:17]} exd5 {[%emt 0:02:05]} 13. Rfe1 {[%emt 0:00:28]} Rac8 {[%emt 0:03:30]} 14. Qb2 {[%emt 0:02:11]} Ne4 {[%emt 0:04:03]} 15. dxc5 {[%emt 0:01:58]} bxc5 {[%emt 0:16:49]} 16. Rac1 {[%emt 0:00:58]} Rfe8 {[%emt 0:01:51]} 17. e3 {[%emt 0:01:19]} Ndf6 {[%emt 0:05:12]} 18. Nxe4 {[%emt 0:00:37]} Nxe4 {[%emt 0:00:22]} 19. Nd2 {[%emt 0:01:12]} Nf6 {[%emt 0:03:18]} 20. Qa3 {[%emt 0:01:10]} a6 {[%emt 0:02:36]} 21. Qa5 {[%emt 0:00:51]} Qc7 {[%emt 0:08:04]} 22. Qxc7 {[%emt 0:00:21]} Rxc7 {[%emt 0:00:02]} 23. Rc2 {[%emt 0:00:23]} Nd7 {[%emt 0:02:10]} 24. Rec1 {[%emt 0:01:09]} f5 {[%emt 0:08:43]} 25. Nb1 {[%emt 0:00:15]} Kf7 {[%emt 0:01:03]} 26. Nc3 {[%emt 0:00:31]} Ke6 {[%emt 0:02:51]} 27. Rd1 {[%emt 0:01:14]} Nf6 {[%emt 0:06:29]} 28. Ne2 {[%emt 0:00:47]} g6 {[%emt 0:04:07]} 29. Nf4+ {[%emt 0:01:32]} Ke7 {[%emt 0:00:46]} 30. b4 {[%emt 0:04:42]} c4 {[%emt 0:02:07]} 31. Nd3 {[%emt 0:01:48]} Nd7 {[%emt 0:01:52]} 32. Nb2 {[%emt 0:00:11]} Nb6 {[%emt 0:01:46]} 33. a4 {[%emt 0:03:35]} Bc6 {[%emt 0:01:14]} 34. a5 {[%emt 0:00:46]} Na4 {[%emt 0:02:32]} 35. Nxc4 {[%emt 0:01:13]} dxc4 {[%emt 0:00:27]} 36. Bxc6 {[%emt 0:00:06]} Rxc6 {[%emt 0:00:36]} 37. Ra1 {[%emt 0:00:13]} Nc5 {[%emt 0:01:40]} 38. Rxc4 {[%emt 0:00:41]} Nb3 {[%emt 0:02:19]} 39. Rxc6 {[%emt 0:00:09]} Nxa1 {[%emt 0:00:02]} 40. Rxa6 {[%emt 0:00:09]} Rb8 {[%emt 0:01:19]} 41. Ra7+ {[%emt 0:30:11]} Ke6 {[%emt 0:30:25]} 42. Rxh7 {[%emt 0:00:09]} Rxb4 {[%emt 0:00:07]} 43. a6 {[%emt 0:00:07]} Ra4 {[%emt 0:00:49]} 44. a7 {[%emt 0:00:14]} Nc2 {[%emt 0:01:22]} 45. Rg7 {[%emt 0:01:15]} Kf6 {[%emt 0:00:30]} 46. Rb7 {[%emt 0:00:44]} Na3 {[%emt 0:04:41]} 47. Kg2 {[%emt 0:00:12]} Nc4 {[%emt 0:00:21]} 48. Rb4 {[%emt 0:00:28]} Nxe3+ {[%emt 0:00:33]} 49. fxe3 {[%emt 0:00:07]} Rxa7 {[%emt 0:00:04]} 50. Kf3 {[%emt 0:00:38]} Ra6 {[%emt 0:00:43]} 51. h3 {[%emt 0:00:28]} Re6 {[%emt 0:01:10]} 52. g4 {[%emt 0:00:37]} fxg4+ {[%emt 0:00:23]} 53. hxg4 {[%emt 0:00:07]} Rc6 {[%emt 0:03:02]} 54. Rb5 {[%emt 0:00:27]} g5 {[%emt 0:03:02]} 55. Rd5 {[%emt 0:00:11]} Rb6 {[%emt 0:01:01]} 56. Ke4 {[%emt 0:00:39]} Ra6 {[%emt 0:00:00]} 57. Rd4 {[%emt 0:00:00]} Rb6 {[%emt 0:00:00]} 58. Kd5 {[%emt 0:00:00]} Rb5+ {[%emt 0:00:00]} 59. Kc4 {[%emt 0:00:00]} Re5 {[%emt 0:00:00]} 60. e4 {[%emt 0:00:00]} Ke6 {[%emt 0:00:00]} 61. Kb4 {[%emt 0:00:00]} Ke7 {[%emt 0:00:00]} 62. Rc4 {[%emt 0:00:00]} Kf6 {[%emt 0:00:00]} 63. Kc3 {[%emt 0:00:00]} Re6 {[%emt 0:00:00]} 64. Kd4 {[%emt 0:00:00]} Rd6+ {[%emt 0:00:00]} 65. Ke3 {[%emt 0:00:00]} Ra6 {[%emt 0:00:00]} 66. Rd4 {[%emt 0:00:00]} Ra3+ {[%emt 0:00:00]} 67. Rd3 {[%emt 0:00:00]} Ra6 {[%emt 0:00:00]} 68. Rb3 {[%emt 0:00:00]} Rc6 {[%emt 0:00:00]} 69. Rb4 {[%emt 0:00:00]} Ra6 {[%emt 0:00:00]} 70. Rb5 {[%emt 0:00:00]} Ra4 {[%emt 0:00:00]} 71. Rf5+ {[%emt 0:00:00]} Kg6 {[%emt 0:00:00]} 72. Kf3 {[%emt 0:00:00]} Ra3+ {[%emt 0:00:00]} 73. Kf2 {[%emt 0:00:00]} Ra2+ {[%emt 0:00:00]} 74. Kg3 {[%emt 0:00:00]} Ra3+ {[%emt 0:00:00]} 75. Rf3 {[%emt 0:00:00]} Ra5 {[%emt 0:00:00]} 76. Rf8 {[%emt 0:00:00]} Ra3+ {[%emt 0:00:00]} 77. Kf2 {[%emt 0:00:00]} Ra2+ {[%emt 0:00:00]} 78. Ke3 {[%emt 0:00:00]} Ra3+ {[%emt 0:00:00]} 79. Kd4 {[%emt 0:00:00]} Ra4+ {[%emt 0:00:00]} 80. Kd5 {[%emt 0:00:00]} 1/2-1/2

[Event "British Championship 2024"]
[Site "Hull"]
[Date "2024.08.01"]
[Round "6.30"]
[White "Bradbury, Neil H"]
[Black "Ledger, Dave J"]
[Result "1/2-1/2"]
[Annotator "RC"]
[ECO "E51"]
[WhiteElo "2153"]
[BlackElo "2201"]
[PlyCount "45"]
[EventDate "2024.07.31"]
[EventCountry "GBR"]
[SourceTitle "playchess.com"]
[Source "ChessBase"]
[SourceQuality "1"]
[TimeControl "40/5400+30:1800+30"]

1. d4 {[%emt 0:00:14]} Nf6 {[%emt 0:00:10]} 2. c4 {[%emt 0:00:13]} e6 {[%emt 0:00:11]} 3. Nc3 {[%emt 0:00:11]} Bb4 {[%emt 0:00:27]} 4. e3 {[%emt 0:00:08]} d5 {[%emt 0:01:09]} 5. Nf3 {[%emt 0:00:14]} O-O {[%emt 0:03:32]} 6. Bd2 {[%emt 0:02:40]} c5 {[%emt 0:03:52]} 7. a3 {[%emt 0:09:48]} Bxc3 {[%emt 0:02:05]} 8. bxc3 {[%emt 0:01:57]} Nc6 {[%emt 0:05:54]} 9. Qc2 {[%emt 0:21:51]} b6 {[%emt 0:13:44]} 10. Bd3 {[%emt 0:06:42]} dxc4 {[%emt 0:06:34]} 11. Bxc4 {[%emt 0:00:05]} cxd4 {[%emt 0:00:16]} 12. cxd4 {[%emt 0:00:49]} Bb7 {[%emt 0:02:37]} 13. O-O {[%emt 0:05:20]} Rc8 {[%emt 0:01:01]} 14. Qd3 {[%emt 0:02:44]} Rc7 {[%emt 0:10:04]} 15. Rfc1 {[%emt 0:17:50]} Qc8 {[%emt 0:09:53]} 16. Bb5 {[%emt 0:07:43]} Rd8 {[%emt 0:02:30]} 17. Bxc6 {[%emt 0:03:29]} Rxc6 {[%emt 0:00:43]} 18. Ne5 {[%emt 0:00:39]} Rc7 {[%emt 0:02:58]} 19. f3 {[%emt 0:01:12]} Qb8 {[%emt 0:05:14]} 20. Rxc7 {[%emt 0:04:02]} Qxc7 {[%emt 0:00:04]} 21. Qb3 {[%emt 0:00:19]} Rc8 {[%emt 0:06:58]} 22. Rc1 {[%emt 0:00:29]} Qd8 {[%emt 0:00:59]} 23. Rxc8 {[%emt 0:13:21]} 1/2-1/2

[Event "British Championship 2024"]
[Site "Hull"]
[Date "2024.08.01"]
[Round "6.31"]
[White "Shearsby, Jude"]
[Black "Brewer, Callum D"]
[Result "1/2-1/2"]
[Annotator "RC"]
[ECO "B12"]
[WhiteElo "2092"]
[BlackElo "2161"]
[PlyCount "87"]
[EventDate "2024.07.31"]
[EventCountry "GBR"]
[SourceTitle "playchess.com"]
[Source "ChessBase"]
[SourceQuality "1"]
[TimeControl "40/5400+30:1800+30"]

1. e4 {[%emt 0:00:03]} c6 {[%emt 0:00:10]} 2. d4 {[%emt 0:00:07]} d5 {[%emt 0:00:02]} 3. e5 {[%emt 0:00:09]} Bf5 {[%emt 0:00:10]} 4. g4 {[%emt 0:00:06]} Be4 {[%emt 0:11:07]} 5. f3 {[%emt 0:00:19]} Bg6 {[%emt 0:00:01]} 6. e6 {[%emt 0:00:25]} Qd6 {[%emt 0:02:25]} 7. exf7+ {[%emt 0:00:16]} Bxf7 {[%emt 0:00:18]} 8. Nc3 {[%emt 0:00:06]} Nd7 {[%emt 0:05:56]} 9. f4 {[%emt 0:02:34]} h5 {[%emt 0:12:29]} 10. g5 {[%emt 0:01:14]} e6 {[%emt 0:05:37]} 11. Bh3 {[%emt 0:04:47]} Ne7 {[%emt 0:02:07]} 12. Qe2 {[%emt 0:00:41]} O-O-O {[%emt 0:02:47]} 13. Be3 {[%emt 0:00:14]} Bg6 {[%emt 0:02:51]} 14. Nf3 {[%emt 0:02:44]} Bf5 {[%emt 0:02:48]} 15. Bxf5 {[%emt 0:06:50]} Nxf5 {[%emt 0:00:56]} 16. O-O-O {[%emt 0:00:30]} g6 {[%emt 0:08:04]} 17. Rde1 {[%emt 0:07:35]} Bg7 {[%emt 0:06:27]} 18. Rhf1 {[%emt 0:01:18]} Nb6 {[%emt 0:05:32]} 19. Bd2 {[%emt 0:18:07]} Rhe8 {[%emt 0:00:45]} 20. Qf2 {[%emt 0:00:56]} Nc4 {[%emt 0:01:49]} 21. Nd1 {[%emt 0:01:42]} c5 {[%emt 0:06:19]} 22. dxc5 {[%emt 0:05:20]} Qa6 {[%emt 0:00:52]} 23. Kb1 {[%emt 0:00:32]} Qb5 {[%emt 0:01:48]} 24. Ne5 {[%emt 0:02:22]} Bxe5 {[%emt 0:02:56]} 25. fxe5 {[%emt 0:00:02]} d4 {[%emt 0:01:05]} 26. b3 {[%emt 0:05:06]} Rd5 {[%emt 0:07:07]} 27. a4 {[%emt 0:17:14]} Nxd2+ {[%emt 0:01:44]} 28. Qxd2 {[%emt 0:00:01]} Qxc5 {[%emt 0:00:07]} 29. Nb2 {[%emt 0:01:55]} Rxe5 {[%emt 0:01:45]} 30. Nd3 {[%emt 0:01:19]} Rxe1+ {[%emt 0:02:21]} 31. Rxe1 {[%emt 0:00:01]} Qd6 {[%emt 0:02:13]} 32. Ne5 {[%emt 0:01:23]} Rg8 {[%emt 0:00:10]} 33. Qd3 {[%emt 0:02:03]} Kb8 {[%emt 0:00:37]} 34. Qe4 {[%emt 0:01:53]} Ka8 {[%emt 0:04:31]} 35. Nc4 {[%emt 0:00:45]} Qxh2 {[%emt 0:00:07]} 36. Qxe6 {[%emt 0:00:05]} Qb8 {[%emt 0:00:02]} 37. Re5 {[%emt 0:01:25]} Qd8 {[%emt 0:01:37]} 38. Ka2 {[%emt 0:07:25]} Kb8 {[%emt 0:00:46]} 39. Rb5 {[%emt 0:01:23]} Qc8 {[%emt 0:00:32]} 40. Qd5 {[%emt 0:01:30]} Re8 {[%emt 0:00:46]} 41. Na5 {[%emt 0:34:06]} Qxc2+ {[%emt 0:04:52]} 42. Ka3 {[%emt 0:00:02]} Qc1+ {[%emt 0:00:13]} 43. Kb4 {[%emt 0:00:04]} Qe1+ {[%emt 0:01:20]} 44. Ka3 {[%emt 0:00:10]} 1/2-1/2

[Event "British Championship 2024"]
[Site "Hull"]
[Date "2024.08.01"]
[Round "6.33"]
[White "Rida, Ruqayyah"]
[Black "Toma, Katarzyna"]
[Result "0-1"]
[Annotator "RC"]
[ECO "B48"]
[WhiteElo "1962"]
[BlackElo "2220"]
[PlyCount "112"]
[EventDate "2024.07.31"]
[EventCountry "GBR"]
[SourceTitle "playchess.com"]
[Source "ChessBase"]
[SourceQuality "1"]
[TimeControl "40/5400+30:1800+30"]

1. e4 {[%emt 0:00:03]} c5 {[%emt 0:00:20]} 2. Nf3 {[%emt 0:00:06]} e6 {[%emt 0:00:55]} 3. d4 {[%emt 0:00:16]} cxd4 {[%emt 0:00:05]} 4. Nxd4 {[%emt 0:00:07]} Nc6 {[%emt 0:00:36]} 5. Nc3 {[%emt 0:01:20]} Qc7 {[%emt 0:00:21]} 6. Be3 {[%emt 0:01:45]} a6 {[%emt 0:00:30]} 7. Bd3 {[%emt 0:01:45]} Nf6 {[%emt 0:02:39]} 8. O-O {[%emt 0:02:07]} b5 {[%emt 0:07:54]} 9. a3 {[%emt 0:02:07]} Bb7 {[%emt 0:02:16]} 10. Nb3 {[%emt 0:09:57]} Ne5 {[%emt 0:05:38]} 11. Bf4 {[%emt 0:14:45]} Bd6 {[%emt 0:07:19]} 12. Re1 {[%emt 0:13:53]} Nf3+ {[%emt 0:03:32]} 13. Qxf3 {[%emt 0:03:02]} Bxf4 {[%emt 0:00:06]} 14. g3 {[%emt 0:07:17]} Be5 {[%emt 0:00:05]} 15. Nd1 {[%emt 0:04:20]} O-O {[%emt 0:00:58]} 16. Qe2 {[%emt 0:03:27]} Qb6 {[%emt 0:04:26]} 17. c3 {[%emt 0:05:42]} Rad8 {[%emt 0:11:07]} 18. Nd2 {[%emt 0:05:56]} Bc7 {[%emt 0:08:06]} 19. Nf3 {[%emt 0:04:47]} e5 {[%emt 0:00:50]} 20. Qe3 {[%emt 0:05:15]} d5 {[%emt 0:04:10]} 21. Qxb6 {[%emt 0:03:00]} Bxb6 {[%emt 0:00:05]} 22. exd5 {[%emt 0:01:18]} e4 {[%emt 0:08:37]} 23. Bxe4 {[%emt 0:00:23]} Nxe4 {[%emt 0:00:08]} 24. Rxe4 {[%emt 0:00:19]} Bxd5 {[%emt 0:00:06]} 25. Rf4 {[%emt 0:01:05]} f6 {[%emt 0:06:07]} 26. h4 {[%emt 0:05:30]} Rfe8 {[%emt 0:07:35]} 27. Ne3 {[%emt 0:01:35]} Rxe3 {[%emt 0:03:14]} 28. fxe3 {[%emt 0:00:50]} Bxe3+ {[%emt 0:00:06]} 29. Kg2 {[%emt 0:00:19]} Bxf4 {[%emt 0:09:18]} 30. gxf4 {[%emt 0:00:07]} Be4 {[%emt 0:00:04]} 31. Kf2 {[%emt 0:01:41]} Rd3 {[%emt 0:00:29]} 32. Nd4 {[%emt 0:00:52]} f5 {[%emt 0:00:27]} 33. Rg1 {[%emt 0:01:08]} Kf7 {[%emt 0:02:22]} 34. Ke2 {[%emt 0:00:52]} Rh3 {[%emt 0:00:17]} 35. Nb3 {[%emt 0:00:30]} Rxh4 {[%emt 0:02:16]} 36. Nc5 {[%emt 0:00:26]} Rh2+ {[%emt 0:00:59]} 37. Ke3 {[%emt 0:00:19]} Rxb2 {[%emt 0:00:28]} 38. Nxa6 {[%emt 0:00:27]} Rb3 {[%emt 0:01:05]} 39. Kd4 {[%emt 0:00:18]} Rxa3 {[%emt 0:00:17]} 40. Nc5 {[%emt 0:00:33]} h5 {[%emt 0:01:58]} 41. Rg5 {[%emt 0:04:18]} g6 {[%emt 0:02:53]} 42. Nd7 {[%emt 0:01:33]} Ra6 {[%emt 0:04:02]} 43. Ne5+ {[%emt 0:01:11]} Kg7 {[%emt 0:00:16]} 44. Rg3 {[%emt 0:01:34]} Re6 {[%emt 0:03:01]} 45. Kc5 {[%emt 0:07:17]} h4 {[%emt 0:00:39]} 46. Rh3 {[%emt 0:00:04]} g5 {[%emt 0:00:08]} 47. Kd4 {[%emt 0:02:30]} Rd6+ {[%emt 0:03:07]} 48. Kc5 {[%emt 0:03:15]} Rd5+ {[%emt 0:00:24]} 49. Kb4 {[%emt 0:01:11]} Kf6 {[%emt 0:02:18]} 50. c4 {[%emt 0:01:52]} bxc4 {[%emt 0:00:12]} 51. Nxc4 {[%emt 0:00:10]} Rd3 {[%emt 0:00:17]} 52. Rh2 {[%emt 0:01:05]} h3 {[%emt 0:02:20]} 53. fxg5+ {[%emt 0:00:57]} Kxg5 {[%emt 0:00:08]} 54. Ne5 {[%emt 0:00:22]} Rg3 {[%emt 0:00:18]} 55. Kc4 {[%emt 0:00:29]} Kh4 {[%emt 0:00:32]} 56. Kd4 {[%emt 0:00:29]} Rg2 {[%emt 0:00:34]} 0-1

[Event "British Championship 2024"]
[Site "Hull"]
[Date "2024.08.01"]
[Round "6.34"]
[White "Pang, Ethan"]
[Black "Saunders, Aron"]
[Result "1/2-1/2"]
[Annotator "ChessBase"]
[ECO "B13"]
[WhiteElo "2164"]
[BlackElo "2105"]
[PlyCount "241"]
[EventDate "2024.07.31"]
[EventCountry "GBR"]
[SourceTitle "playchess.com"]
[Source "ChessBase"]
[SourceQuality "1"]
[TimeControl "40/5400+30:1800+30"]

1. e4 {[%emt 0:06:37]} c6 {[%emt 0:00:07]} 2. d4 {[%emt 0:00:23]} d5 {[%emt 0:00:06]} 3. exd5 {[%emt 0:00:27]} cxd5 {[%emt 0:00:07]} 4. Bd3 {[%emt 0:00:19]} Nc6 {[%emt 0:00:06]} 5. c3 {[%emt 0:00:13]} Nf6 {[%emt 0:00:05]} 6. Bf4 {[%emt 0:00:23]} Bg4 {[%emt 0:00:32]} 7. Qb3 {[%emt 0:00:21]} Qd7 {[%emt 0:00:18]} 8. Nd2 {[%emt 0:00:25]} e6 {[%emt 0:00:23]} 9. Ngf3 {[%emt 0:00:20]} Bd6 {[%emt 0:00:27]} 10. Ne5 {[%emt 0:00:22]} Qc7 {[%emt 0:02:49]} 11. O-O {[%emt 0:00:42]} Nd7 {[%emt 0:08:00]} 12. Rae1 {[%emt 0:08:03]} Bh5 {[%emt 0:13:45]} 13. Bg3 {[%emt 0:09:54]} Bxe5 {[%emt 0:04:52]} 14. Bxe5 {[%emt 0:00:45]} Ncxe5 {[%emt 0:03:46]} 15. dxe5 {[%emt 0:00:08]} O-O {[%emt 0:01:34]} 16. Qc2 {[%emt 0:04:22]} Bg6 {[%emt 0:00:24]} 17. Bxg6 {[%emt 0:00:31]} hxg6 {[%emt 0:05:54]} 18. Nf3 {[%emt 0:00:51]} Qc4 {[%emt 0:03:19]} 19. Nd4 {[%emt 0:00:45]} Rac8 {[%emt 0:01:58]} 20. Qd2 {[%emt 0:01:34]} Nc5 {[%emt 0:01:19]} 21. Re3 {[%emt 0:07:01]} Ne4 {[%emt 0:02:21]} 22. Qc1 {[%emt 0:02:43]} Qc7 {[%emt 0:07:37]} 23. Rfe1 {[%emt 0:04:51]} Qe7 {[%emt 0:03:28]} 24. Rh3 {[%emt 0:01:48]} Rc4 {[%emt 0:02:28]} 25. f3 {[%emt 0:02:50]} Ng5 {[%emt 0:02:45]} 26. Rg3 {[%emt 0:00:08]} Nh7 {[%emt 0:00:06]} 27. f4 {[%emt 0:47:14]} Rfc8 {[%emt 0:01:08]} 28. Qd2 {[%emt 0:00:00]} a6 {[%emt 0:01:22]} 29. Rg4 {[%emt 0:00:00]} b5 {[%emt 0:03:36]} 30. a3 {[%emt 0:00:00]} R4c5 {[%emt 0:00:35]} 31. Re3 {[%emt 0:00:00]} a5 {[%emt 0:02:00]} 32. Rh3 {[%emt 0:00:00]} Nf8 {[%emt 0:00:21]} 33. b4 {[%emt 0:00:00]} axb4 {[%emt 0:00:22]} 34. axb4 {[%emt 0:00:00]} R5c6 {[%emt 0:02:05]} 35. Nxc6 {[%emt 0:00:00]} Rxc6 {[%emt 0:00:04]} 36. Rgh4 {[%emt 0:00:00]} f5 {[%emt 0:00:31]} 37. exf6 {[%emt 0:00:00]} gxf6 {[%emt 0:01:32]} 38. Qd4 {[%emt 0:00:00]} Kg7 {[%emt 0:02:03]} 39. Rd3 {[%emt 0:00:00]} Qc7 {[%emt 0:01:21]} 40. Qe3 {[%emt 0:00:00]} Rc4 {[%emt 0:00:55]} 41. Rh3 {[%emt 0:09:37]} Re4 {[%emt 0:35:27]} 42. Qc5 {[%emt 0:00:19]} Qxc5+ {[%emt 0:01:29]} 43. bxc5 {[%emt 0:00:24]} Rc4 {[%emt 0:00:41]} 44. c6 {[%emt 0:00:33]} Rxc6 {[%emt 0:00:43]} 45. Rd4 {[%emt 0:00:36]} Nd7 {[%emt 0:02:51]} 46. Rb4 {[%emt 0:01:04]} Rc5 {[%emt 0:00:41]} 47. Re3 {[%emt 0:01:31]} e5 {[%emt 0:02:11]} 48. Rb3 {[%emt 0:00:31]} Kf7 {[%emt 0:01:42]} 49. fxe5 {[%emt 0:00:33]} fxe5 {[%emt 0:12:44]} 50. Re1 {[%emt 0:00:18]} Ke6 {[%emt 0:00:00]} 51. Ra1 {[%emt 0:00:55]} Nf6 {[%emt 0:00:00]} 52. Ra6+ {[%emt 0:04:59]} Kf5 {[%emt 0:00:00]} 53. c4 {[%emt 0:00:52]} Rxc4 {[%emt 0:00:00]} 54. Rf3+ {[%emt 0:00:09]} Rf4 {[%emt 0:00:00]} 55. Rxf4+ {[%emt 0:00:33]} exf4 {[%emt 0:00:00]} 56. Rb6 {[%emt 0:00:04]} g5 {[%emt 0:00:00]} 57. h3 {[%emt 0:00:00]} Ke5 {[%emt 0:00:00]} 58. Rxb5 {[%emt 0:00:00]} Kf5 {[%emt 0:00:00]} 59. Kf2 {[%emt 0:00:00]} Ke4 {[%emt 0:00:00]} 60. Rb6 {[%emt 0:00:00]} Ke5 {[%emt 0:00:00]} 61. Kf3 {[%emt 0:00:00]} Kf5 {[%emt 0:00:00]} 62. Rb7 {[%emt 0:00:00]} Ke5 {[%emt 0:00:00]} 63. Rc7 {[%emt 0:00:00]} Kf5 {[%emt 0:00:00]} 64. Rg7 {[%emt 0:00:00]} Nh5 {[%emt 0:00:00]} 65. Rg8 {[%emt 0:00:00]} Nf6 {[%emt 0:00:00]} 66. Rg7 {[%emt 0:00:00]} Nh5 {[%emt 0:00:00]} 67. Re7 {[%emt 0:00:00]} Nf6 {[%emt 0:00:00]} 68. Rc7 {[%emt 0:00:00]} Ke5 {[%emt 0:00:00]} 69. Re7+ {[%emt 0:00:00]} Kf5 {[%emt 0:00:00]} 70. Ke2 {[%emt 0:00:00]} Ng8 {[%emt 0:00:00]} 71. Ra7 {[%emt 0:00:00]} Nf6 {[%emt 0:00:00]} 72. Kd3 {[%emt 0:00:00]} g4 {[%emt 0:00:00]} 73. hxg4+ {[%emt 0:00:00]} Nxg4 {[%emt 0:00:00]} 74. Rg7 {[%emt 0:00:00]} Ne5+ {[%emt 0:00:00]} 75. Kd4 {[%emt 0:00:00]} f3 {[%emt 0:00:00]} 76. gxf3 {[%emt 0:00:00]} Nxf3+ {[%emt 0:00:00]} 77. Kxd5 {[%emt 0:00:00]} Ne5 {[%emt 0:00:00]} 78. Rg1 {[%emt 0:00:00]} Kf4 {[%emt 0:00:00]} 79. Re1 {[%emt 0:00:00]} Nf3 {[%emt 0:00:00]} 80. Re4+ {[%emt 0:00:00]} Kf5 {[%emt 0:00:00]} 81. Re8 {[%emt 0:00:00]} Kf4 {[%emt 0:00:00]} 82. Re6 {[%emt 0:00:00]} Kf5 {[%emt 0:00:00]} 83. Re4 {[%emt 0:00:00]} Ng5 {[%emt 0:00:06]} 84. Re1 {[%emt 0:00:00]} Nf3 {[%emt 0:00:16]} 85. Re4 {[%emt 0:00:00]} Ng5 {[%emt 0:00:04]} 86. Rc4 {[%emt 0:00:00]} Nf3 {[%emt 0:00:12]} 87. Ra4 {[%emt 0:00:00]} Ng5 {[%emt 0:00:34]} 88. Ra8 {[%emt 0:00:00]} Ne6 {[%emt 0:00:43]} 89. Rc8 {[%emt 0:00:00]} Nf4+ {[%emt 0:00:09]} 90. Kd6 {[%emt 0:00:00]} Ke4 {[%emt 0:00:10]} 91. Rf8 {[%emt 0:00:00]} Nd3 {[%emt 0:00:17]} 92. Ke6 {[%emt 0:00:00]} Nc5+ {[%emt 0:00:06]} 93. Kd6 {[%emt 0:00:00]} Nd3 {[%emt 0:00:04]} 94. Re8+ {[%emt 0:00:00]} Kd4 {[%emt 0:00:04]} 95. Ke6 {[%emt 0:00:00]} Ke4 {[%emt 0:00:29]} 96. Rd8 {[%emt 0:00:00]} Nc5+ {[%emt 0:00:12]} 97. Kf6 {[%emt 0:00:00]} Nd3 {[%emt 0:00:13]} 98. Rd6 {[%emt 0:00:00]} Nc5 {[%emt 0:00:26]} 99. Rd8 {[%emt 0:00:00]} Nd3 {[%emt 0:00:07]} 100. Re8+ {[%emt 0:00:00]} Kd4 {[%emt 0:00:05]} 101. Kf5 {[%emt 0:00:00]} Nc5 {[%emt 0:00:52]} 102. Rd8+ {[%emt 0:00:00]} Kc4 {[%emt 0:00:10]} 103. Ke5 {[%emt 0:00:00]} Nd3+ {[%emt 0:00:14]} 104. Ke4 {[%emt 0:00:00]} Nc5+ {[%emt 0:00:05]} 105. Ke3 {[%emt 0:00:00]} Nb3 {[%emt 0:00:21]} 106. Rd6 {[%emt 0:00:00]} Kc5 {[%emt 0:00:24]} 107. Rd1 {[%emt 0:00:00]} Kc4 {[%emt 0:00:07]} 108. Rh1 {[%emt 0:00:00]} Nc5 {[%emt 0:00:11]} 109. Rh5 {[%emt 0:00:00]} Ne6 {[%emt 0:00:40]} 110. Re5 {[%emt 0:00:00]} Nc5 {[%emt 0:00:06]} 111. Re7 {[%emt 0:00:00]} Kd5 {[%emt 0:00:06]} 112. Rh7 {[%emt 0:00:00]} Ne6 {[%emt 0:00:23]} 113. Rd7+ {[%emt 0:00:00]} Ke5 {[%emt 0:00:05]} 114. Ra7 {[%emt 0:00:00]} Nc5 {[%emt 0:00:04]} 115. Ra8 {[%emt 0:00:00]} Kd5 {[%emt 0:00:07]} 116. Rc8 {[%emt 0:00:00]} Ne6 {[%emt 0:00:05]} 117. Rb8 {[%emt 0:00:00]} Nc5 {[%emt 0:00:05]} 118. Rb4 {[%emt 0:00:00]} Ne6 {[%emt 0:00:10]} 119. Ra4 {[%emt 0:00:00]} Nc5 {[%emt 0:00:05]} 120. Ra5 {[%emt 0:00:00]} Kc4 {[%emt 0:00:06]} 121. Ra1 {[%emt 0:00:00]} 1/2-1/2

[Event "British Championship 2024"]
[Site "Hull"]
[Date "2024.08.01"]
[Round "6.35"]
[White "Verma, Shlok"]
[Black "Larchikov, Maksym"]
[Result "1/2-1/2"]
[Annotator "RC"]
[ECO "D36"]
[WhiteElo "2102"]
[BlackElo "2181"]
[PlyCount "90"]
[EventDate "2024.07.31"]
[EventCountry "GBR"]
[SourceTitle "playchess.com"]
[Source "ChessBase"]
[SourceQuality "1"]
[TimeControl "40/5400+30:1800+30"]

1. d4 {[%emt 0:00:05]} d5 {[%emt 0:00:12]} 2. c4 {[%emt 0:00:07]} e6 {[%emt 0:00:10]} 3. Nc3 {[%emt 0:00:11]} Nf6 {[%emt 0:00:16]} 4. cxd5 {[%emt 0:00:12]} exd5 {[%emt 0:00:11]} 5. Bg5 {[%emt 0:00:05]} Be7 {[%emt 0:00:20]} 6. e3 {[%emt 0:00:21]} c6 {[%emt 0:00:19]} 7. Bd3 {[%emt 0:00:15]} O-O {[%emt 0:00:22]} 8. Nf3 {[%emt 0:00:07]} Nbd7 {[%emt 0:00:42]} 9. Qc2 {[%emt 0:00:24]} Re8 {[%emt 0:00:48]} 10. h3 {[%emt 0:00:06]} Nf8 {[%emt 0:01:17]} 11. O-O {[%emt 0:03:26]} Ne4 {[%emt 0:05:40]} 12. Bf4 {[%emt 0:34:24]} f5 {[%emt 0:02:01]} 13. Ne5 {[%emt 0:00:22]} Ng6 {[%emt 0:04:33]} 14. Bh2 {[%emt 0:17:59]} Bd6 {[%emt 0:02:11]} 15. f4 {[%emt 0:00:45]} Nxe5 {[%emt 0:12:22]} 16. fxe5 {[%emt 0:00:31]} Bf8 {[%emt 0:00:51]} 17. Nxe4 {[%emt 0:05:01]} fxe4 {[%emt 0:03:53]} 18. Be2 {[%emt 0:00:01]} Be6 {[%emt 0:03:20]} 19. Qd1 {[%emt 0:06:00]} Qd7 {[%emt 0:01:50]} 20. Bf4 {[%emt 0:03:38]} Be7 {[%emt 0:03:34]} 21. Qe1 {[%emt 0:00:31]} Kh8 {[%emt 0:11:21]} 22. Qd2 {[%emt 0:04:33]} a5 {[%emt 0:04:30]} 23. a4 {[%emt 0:03:04]} Rg8 {[%emt 0:01:48]} 24. g4 {[%emt 0:02:33]} Qd8 {[%emt 0:12:44]} 25. Kg2 {[%emt 0:01:02]} Qb6 {[%emt 0:09:38]} 26. Bg3 {[%emt 0:04:23]} Rgc8 {[%emt 0:04:21]} 27. Rfc1 {[%emt 0:05:21]} Rf8 {[%emt 0:02:25]} 28. Rf1 {[%emt 0:00:51]} Rfc8 {[%emt 0:01:37]} 29. Rfc1 {[%emt 0:00:06]} Rf8 {[%emt 0:00:53]} 30. Rf1 {[%emt 0:00:39]} Bb4 {[%emt 0:00:34]} 31. Rxf8+ {[%emt 0:03:04]} Rxf8 {[%emt 0:00:02]} 32. Qd1 {[%emt 0:00:01]} c5 {[%emt 0:00:49]} 33. Bf2 {[%emt 0:00:13]} c4 {[%emt 0:04:50]} 34. Qc2 {[%emt 0:00:23]} Rc8 {[%emt 0:01:25]} 35. Rf1 {[%emt 0:00:53]} Qd8 {[%emt 0:00:54]} 36. Bg3 {[%emt 0:03:02]} Qe8 {[%emt 0:00:59]} 37. Be1 {[%emt 0:01:12]} Bd7 {[%emt 0:03:38]} 38. Bd1 {[%emt 0:00:12]} Rc6 {[%emt 0:00:34]} 39. Bh4 {[%emt 0:02:59]} h6 {[%emt 0:01:30]} 40. Bg3 {[%emt 0:00:44]} Rg6 {[%emt 0:00:31]} 41. Kh2 {[%emt 0:04:29]} Rb6 {[%emt 0:08:54]} 42. Kg2 {[%emt 0:08:07]} Be7 {[%emt 0:02:31]} 43. Be1 {[%emt 0:04:40]} Bb4 {[%emt 0:03:04]} 44. Bg3 {[%emt 0:03:26]} Be7 {[%emt 0:08:43]} 45. Be1 {[%emt 0:00:51]} Bb4 {[%emt 0:01:33]} 1/2-1/2